[Event "*** Titled Tuesday Blitz"]
[Site "Chess.com"]
[Date "2020.04.28"]
[Round "2"]
[White "Unknown_IM"]
[Black "Pechen_Yeltsina"]
[Result "0-1"]
[WhiteElo "2501"]
[BlackElo "2766"]
[TimeControl "180+1"]
[EndTime "10:18:57 PDT"]
[Termination "Pechen_Yeltsina won on time"]

1. Nf3 {[%clk 0:03:00.9]} 1... g6 {[%clk 0:02:59.8]} 2. d4 {[%clk 0:02:59.4]}
2... Bg7 {[%clk 0:02:59.9]} 3. c4 {[%clk 0:02:58.7]} 3... d6 {[%clk 0:03:00.2]}
4. Nc3 {[%clk 0:02:58.9]} 4... Nd7 {[%clk 0:03:00.7]} 5. g3 {[%clk 0:02:57.8]}
5... e5 {[%clk 0:03:01.1]} 6. Bg2 {[%clk 0:02:57.1]} 6... Ne7 {[%clk 0:03:01.1]}
7. O-O {[%clk 0:02:56.5]} 7... O-O {[%clk 0:03:01.3]} 8. e4 {[%clk 0:02:55.9]}
8... exd4 {[%clk 0:03:01.6]} 9. Nxd4 {[%clk 0:02:56.8]} 9... Nc6 {[%clk
0:03:02.1]} 10. Be3 {[%clk 0:02:55.5]} 10... Nde5 {[%clk 0:03:02.3]} 11. b3
{[%clk 0:02:50.6]} 11... Ng4 {[%clk 0:03:02.3]} 12. Nxc6 {[%clk 0:02:41.6]}
12... Nxe3 {[%clk 0:03:02.6]} 13. fxe3 {[%clk 0:02:27.4]} 13... bxc6 {[%clk
0:03:02.7]} 14. Rc1 {[%clk 0:02:27.5]} 14... Be5 {[%clk 0:02:56.7]} 15. Qd3
{[%clk 0:02:23]} 15... c5 {[%clk 0:02:55.8]} 16. Nd5 {[%clk 0:02:21]} 16... c6
{[%clk 0:02:53.8]} 17. Nf4 {[%clk 0:02:16.7]} 17... h5 {[%clk 0:02:53.9]} 18.
Rcd1 {[%clk 0:02:15.5]} 18... h4 {[%clk 0:02:52.3]} 19. Kf2 {[%clk 0:01:46.9]}
19... Qg5 {[%clk 0:02:47.7]} 20. Bf3 {[%clk 0:01:44]} 20... hxg3+ {[%clk
0:02:42.9]} 21. hxg3 {[%clk 0:01:44.9]} 21... Kg7 {[%clk 0:02:43]} 22. Rh1
{[%clk 0:01:44.7]} 22... Bd7 {[%clk 0:02:30.9]} 23. Rh4 {[%clk 0:01:44.1]} 23...
Rh8 {[%clk 0:02:31.2]} 24. Rdh1 {[%clk 0:01:44.3]} 24... Rxh4 {[%clk 0:02:30]}
25. Rxh4 {[%clk 0:01:20.6]} 25... Rh8 {[%clk 0:02:28.8]} 26. Rxh8 {[%clk
0:01:19.5]} 26... Kxh8 {[%clk 0:02:29.7]} 27. Qf1 {[%clk 0:01:19.1]} 27... Kg7
{[%clk 0:02:28.6]} 28. Qh1 {[%clk 0:01:10.3]} 28... Bf6 {[%clk 0:02:28.6]} 29.
Nd3 {[%clk 0:01:07.7]} 29... Bg4 {[%clk 0:02:14.3]} 30. Bxg4 {[%clk 0:01:04.7]}
30... Qxg4 {[%clk 0:02:15.2]} 31. Qf3 {[%clk 0:01:04.9]} 31... Qh3 {[%clk
0:02:13.9]} 32. Nf4 {[%clk 0:01:02.3]} 32... Qh2+ {[%clk 0:02:08.9]} 33. Qg2
{[%clk 0:01:01.9]} 33... Qh8 {[%clk 0:02:09.3]} 34. Qh3 {[%clk 0:00:57.4]} 34...
Qxh3 {[%clk 0:01:55.4]} 35. Nxh3 {[%clk 0:00:58.3]} 35... Be5 {[%clk 0:01:54.2]}
36. Kf3 {[%clk 0:00:58.1]} 36... Kf6 {[%clk 0:01:54]} 37. Nf2 {[%clk 0:00:57.5]}
37... Kg5 {[%clk 0:01:50.5]} 38. Nh3+ {[%clk 0:00:50.2]} 38... Kf6 {[%clk
0:01:48.7]} 39. Nf2 {[%clk 0:00:46.3]} 39... Ke6 {[%clk 0:01:45.9]} 40. Nd3
{[%clk 0:00:44.8]} 40... Bc3 {[%clk 0:01:43.7]} 41. Nf4+ {[%clk 0:00:43.6]}
41... Ke5 {[%clk 0:01:43.8]} 42. Nd3+ {[%clk 0:00:43.1]} 42... Kf6 {[%clk
0:01:44.3]} 43. Kf4 {[%clk 0:00:41.1]} 43... Be5+ {[%clk 0:01:39.3]} 44. Kf3
{[%clk 0:00:41]} 44... Kg5 {[%clk 0:01:33.7]} 45. Nf2 {[%clk 0:00:40.2]} 45...
Kf6 {[%clk 0:01:27.6]} 46. Ng4+ {[%clk 0:00:38.2]} 46... Ke6 {[%clk 0:01:27.5]}
47. Nf2 {[%clk 0:00:38]} 47... Bg7 {[%clk 0:01:27.7]} 48. Nd3 {[%clk 0:00:35.2]}
48... Kd7 {[%clk 0:01:25.9]} 49. Kf4 {[%clk 0:00:27.9]} 49... Bh6+ {[%clk
0:01:26.1]} 50. Kf3 {[%clk 0:00:27.7]} 50... Bg5 {[%clk 0:01:23]} 51. Kg4 {[%clk
0:00:26.8]} 51... Bxe3 {[%clk 0:01:22.5]} 52. Kf3 {[%clk 0:00:20.7]} 52... Bd4
{[%clk 0:01:23]} 53. Kf4 {[%clk 0:00:20.2]} 53... Ke6 {[%clk 0:01:23.4]} 54. Kg5
{[%clk 0:00:19.4]} 54... Be3+ {[%clk 0:01:23.3]} 55. Kg4 {[%clk 0:00:19.3]}
55... Bh6 {[%clk 0:01:21.1]} 56. Kf3 {[%clk 0:00:17.6]} 56... Bg7 {[%clk
0:01:20.7]} 57. Kf4 {[%clk 0:00:16.2]} 57... Bd4 {[%clk 0:01:19.4]} 58. Kf3
{[%clk 0:00:16.2]} 58... d5 {[%clk 0:01:16.7]} 59. exd5+ {[%clk 0:00:13.4]}
59... cxd5 {[%clk 0:01:17.6]} 60. Nf4+ {[%clk 0:00:13.9]} 60... Ke5 {[%clk
0:01:16.3]} 61. Nxd5 {[%clk 0:00:14]} 61... Bb2 {[%clk 0:01:15.4]} 62. Ke3
{[%clk 0:00:12.9]} 62... Bc1+ {[%clk 0:01:14.9]} 63. Kf3 {[%clk 0:00:12.8]}
63... Kd4 {[%clk 0:01:13.4]} 64. Ke2 {[%clk 0:00:09.6]} 64... Bg5 {[%clk
0:01:10.8]} 65. Kf3 {[%clk 0:00:07]} 65... Kd3 {[%clk 0:01:10.2]} 66. Nc7 {[%clk
0:00:04.6]} 66... Bd8 {[%clk 0:01:09.9]} 67. Nb5 {[%clk 0:00:04.6]} 67... a6
{[%clk 0:01:08.2]} 68. Nd6 {[%clk 0:00:04.9]} 68... f5 {[%clk 0:01:05.6]} 69.
Nf7 {[%clk 0:00:03.8]} 69... Bf6 {[%clk 0:01:06]} 70. Nd6 {[%clk 0:00:03.1]}
70... Kc2 {[%clk 0:01:04.4]} 71. Nb7 {[%clk 0:00:02.9]} 71... Be7 {[%clk
0:01:03.2]} 72. Na5 {[%clk 0:00:02.4]} 72... Kb2 {[%clk 0:01:02.4]} 73. a4
{[%clk 0:00:02.8]} 73... Ka3 {[%clk 0:01:02.3]} 74. Kf4 {[%clk 0:00:03.3]} 74...
Bd6+ {[%clk 0:01:02.4]} 75. Kf3 {[%clk 0:00:01.8]} 75... g5 {[%clk 0:01:02.6]}
76. g4 {[%clk 0:00:01.1]} 76... fxg4+ {[%clk 0:00:59.5]} 0-1

[Event "*** Titled Tuesday Blitz"]
[Site "Chess.com"]
[Date "2020.04.28"]
[Round "2"]
[White "BakaPG"]
[Black "etserga"]
[Result "0-1"]
[WhiteElo "2697"]
[BlackElo "2416"]
[TimeControl "180+1"]
[EndTime "10:18:57 PDT"]
[Termination "etserga won on time"]

1. e4 {[%clk 0:03:00.9]} 1... d5 {[%clk 0:02:57.2]} 2. exd5 {[%clk 0:03:00.4]}
2... Qxd5 {[%clk 0:02:57.2]} 3. Nc3 {[%clk 0:03:01]} 3... Qd8 {[%clk 0:02:56.9]}
4. d4 {[%clk 0:02:59.5]} 4... g6 {[%clk 0:02:56]} 5. Nf3 {[%clk 0:02:58.6]} 5...
Bg7 {[%clk 0:02:55.4]} 6. Bc4 {[%clk 0:02:57.9]} 6... Nf6 {[%clk 0:02:54.9]} 7.
h3 {[%clk 0:02:55.7]} 7... O-O {[%clk 0:02:54.4]} 8. Qe2 {[%clk 0:02:55.3]} 8...
a6 {[%clk 0:02:52.7]} 9. O-O {[%clk 0:02:50.6]} 9... b5 {[%clk 0:02:50.2]} 10.
Bb3 {[%clk 0:02:51.1]} 10... Bb7 {[%clk 0:02:48.4]} 11. Bg5 {[%clk 0:02:47.1]}
11... Nc6 {[%clk 0:02:42.3]} 12. Rad1 {[%clk 0:02:41.8]} 12... Na5 {[%clk
0:02:40.4]} 13. Rfe1 {[%clk 0:02:39.7]} 13... h6 {[%clk 0:02:33.5]} 14. Bh4
{[%clk 0:02:36.6]} 14... Nxb3 {[%clk 0:02:27.2]} 15. axb3 {[%clk 0:02:34.3]}
15... Re8 {[%clk 0:02:24.7]} 16. Ne5 {[%clk 0:02:23.8]} 16... e6 {[%clk
0:02:20]} 17. f4 {[%clk 0:02:17.1]} 17... c5 {[%clk 0:02:07.2]} 18. dxc5 {[%clk
0:02:12.6]} 18... Qc7 {[%clk 0:02:07]} 19. Bf2 {[%clk 0:02:11.1]} 19... Nh5
{[%clk 0:02:06]} 20. Qg4 {[%clk 0:01:58.4]} 20... Rad8 {[%clk 0:01:48.1]} 21.
Rxd8 {[%clk 0:01:48.6]} 21... Rxd8 {[%clk 0:01:46]} 22. b4 {[%clk 0:01:48.1]}
22... Rd2 {[%clk 0:01:36.6]} 23. h4 {[%clk 0:01:11.3]} 23... Nf6 {[%clk
0:01:18.2]} 24. Qh3 {[%clk 0:01:07.4]} 24... Nh5 {[%clk 0:01:07.4]} 25. Qe3
{[%clk 0:01:01.2]} 25... Rxc2 {[%clk 0:01:02.8]} 26. Ne4 {[%clk 0:00:53.3]}
26... Nxf4 {[%clk 0:00:54]} 27. Qxf4 {[%clk 0:00:41.6]} 27... Qxe5 {[%clk
0:00:53.1]} 28. Qxe5 {[%clk 0:00:30.8]} 28... Bxe5 {[%clk 0:00:52.1]} 29. Nd6
{[%clk 0:00:31.7]} 29... Bxd6 {[%clk 0:00:42.5]} 30. cxd6 {[%clk 0:00:30.3]}
30... Rd2 {[%clk 0:00:38.7]} 31. Rc1 {[%clk 0:00:25.6]} 31... Rxd6 {[%clk
0:00:33.3]} 32. Rc7 {[%clk 0:00:25.5]} 32... Rd1+ {[%clk 0:00:30.1]} 33. Kh2
{[%clk 0:00:24.9]} 33... Rd2 {[%clk 0:00:25.6]} 34. Kg3 {[%clk 0:00:24.4]} 34...
Bd5 {[%clk 0:00:21.8]} 35. Be3 {[%clk 0:00:20]} 35... Rxg2+ {[%clk 0:00:20.3]}
36. Kf4 {[%clk 0:00:19.4]} 36... f6 {[%clk 0:00:17.3]} 37. Bc5 {[%clk
0:00:15.9]} 37... g5+ {[%clk 0:00:15.6]} 38. hxg5 {[%clk 0:00:15.4]} 38... hxg5+
{[%clk 0:00:15.3]} 39. Ke3 {[%clk 0:00:16]} 39... Rxb2 {[%clk 0:00:15.1]} 40.
Bd4 {[%clk 0:00:15.4]} 40... Rb3+ {[%clk 0:00:13.9]} 41. Kd2 {[%clk 0:00:14.7]}
41... Rf3 {[%clk 0:00:13.6]} 42. Ke2 {[%clk 0:00:13.7]} 42... g4 {[%clk
0:00:13.2]} 43. Rc5 {[%clk 0:00:10.2]} 43... Bc4+ {[%clk 0:00:12.3]} 44. Ke1
{[%clk 0:00:08.9]} 44... e5 {[%clk 0:00:12.1]} 45. Bg1 {[%clk 0:00:06]} 45...
Rf1+ {[%clk 0:00:11.2]} 46. Kd2 {[%clk 0:00:05.9]} 46... Rxg1 {[%clk 0:00:11.2]}
47. Rc6 {[%clk 0:00:06.3]} 47... Kf7 {[%clk 0:00:10.5]} 48. Rxa6 {[%clk
0:00:06.6]} 48... g3 {[%clk 0:00:10.1]} 49. Ke3 {[%clk 0:00:07.3]} 49... Rf1
{[%clk 0:00:09.4]} 50. Ra7+ {[%clk 0:00:05.5]} 50... Kg6 {[%clk 0:00:09.4]} 51.
Ra8 {[%clk 0:00:03.1]} 51... g2 {[%clk 0:00:09.4]} 52. Rg8+ {[%clk 0:00:03.6]}
52... Bxg8 {[%clk 0:00:08.7]} 0-1

[Event "*** Titled Tuesday Blitz"]
[Site "Chess.com"]
[Date "2020.04.28"]
[Round "2"]
[White "The_Machine04"]
[Black "Koalaskakistis"]
[Result "1/2-1/2"]
[WhiteElo "2294"]
[BlackElo "2517"]
[TimeControl "180+1"]
[EndTime "10:18:57 PDT"]
[Termination "Game drawn by repetition"]

1. d4 {[%clk 0:03:00.9]} 1... f5 {[%clk 0:02:54.4]} 2. Bg5 {[%clk 0:02:59.8]}
2... h6 {[%clk 0:02:42.2]} 3. Bh4 {[%clk 0:02:58.7]} 3... g5 {[%clk 0:02:41.5]}
4. Bg3 {[%clk 0:02:58.3]} 4... Nf6 {[%clk 0:02:40]} 5. e3 {[%clk 0:02:56.2]}
5... d6 {[%clk 0:02:38.9]} 6. h4 {[%clk 0:02:53.3]} 6... Rg8 {[%clk 0:02:36.6]}
7. hxg5 {[%clk 0:02:50.7]} 7... hxg5 {[%clk 0:02:37.5]} 8. Nc3 {[%clk
0:02:50.3]} 8... e6 {[%clk 0:02:31]} 9. Be2 {[%clk 0:02:47.1]} 9... Bd7 {[%clk
0:02:22.3]} 10. Bh5+ {[%clk 0:02:45.6]} 10... Nxh5 {[%clk 0:01:58]} 11. Qxh5+
{[%clk 0:02:46.5]} 11... Ke7 {[%clk 0:01:57.2]} 12. f4 {[%clk 0:02:36.8]} 12...
Qe8 {[%clk 0:01:42.7]} 13. Qh7+ {[%clk 0:02:11.3]} 13... Rg7 {[%clk 0:01:36.7]}
14. Qh2 {[%clk 0:02:08.4]} 14... Nc6 {[%clk 0:01:29.5]} 15. fxg5 {[%clk
0:02:03.2]} 15... Qg6 {[%clk 0:01:24]} 16. Nf3 {[%clk 0:02:00.4]} 16... Nb4
{[%clk 0:01:21.5]} 17. Rc1 {[%clk 0:01:49.5]} 17... Bc6 {[%clk 0:01:20.2]} 18.
a3 {[%clk 0:01:39.2]} 18... Nd5 {[%clk 0:01:17]} 19. Nxd5+ {[%clk 0:01:39.3]}
19... Bxd5 {[%clk 0:01:17.9]} 20. Qh5 {[%clk 0:01:36.3]} 20... Qxh5 {[%clk
0:00:42.1]} 21. Rxh5 {[%clk 0:01:37.2]} 21... Kf7 {[%clk 0:00:42.2]} 22. Kf2
{[%clk 0:01:30.5]} 22... Be7 {[%clk 0:00:40.9]} 23. Bf4 {[%clk 0:01:24.2]} 23...
Rag8 {[%clk 0:00:33.4]} 24. Rch1 {[%clk 0:01:10]} 24... Bxf3 {[%clk 0:00:32.1]}
25. gxf3 {[%clk 0:01:09.4]} 25... Bxg5 {[%clk 0:00:32.2]} 26. Bxg5 {[%clk
0:01:09.4]} 26... Rxg5 {[%clk 0:00:33.1]} 27. Rxg5 {[%clk 0:01:09.7]} 27... Rxg5
{[%clk 0:00:32.6]} 28. Rh7+ {[%clk 0:00:58.1]} 28... Rg7 {[%clk 0:00:32.4]} 29.
Rxg7+ {[%clk 0:00:58.4]} 29... Kxg7 {[%clk 0:00:33.3]} 30. c4 {[%clk 0:00:43.4]}
30... Kf6 {[%clk 0:00:31.8]} 31. Kg3 {[%clk 0:00:42.1]} 31... Kg5 {[%clk
0:00:30.9]} 32. e4 {[%clk 0:00:33.3]} 32... fxe4 {[%clk 0:00:28.3]} 33. fxe4
{[%clk 0:00:33]} 33... e5 {[%clk 0:00:24.3]} 34. d5 {[%clk 0:00:30.7]} 34... a5
{[%clk 0:00:18.5]} 35. b3 {[%clk 0:00:24.1]} 35... Kh5 {[%clk 0:00:11.1]} 36.
Kh3 {[%clk 0:00:20.7]} 36... Kg5 {[%clk 0:00:09.9]} 37. Kg3 {[%clk 0:00:21]}
37... b6 {[%clk 0:00:04.4]} 38. b4 {[%clk 0:00:20.2]} 38... axb4 {[%clk
0:00:04.1]} 39. axb4 {[%clk 0:00:21.1]} 39... Kh5 {[%clk 0:00:05]} 40. Kh3
{[%clk 0:00:20.4]} 40... Kg5 {[%clk 0:00:05.6]} 41. Kg3 {[%clk 0:00:20.6]} 41...
Kh5 {[%clk 0:00:03.9]} 42. Kh3 {[%clk 0:00:19.9]} 42... Kh6 {[%clk 0:00:02]} 43.
Kh4 {[%clk 0:00:18.9]} 43... Kg6 {[%clk 0:00:02.1]} 44. Kg4 {[%clk 0:00:19.2]}
44... Kf6 {[%clk 0:00:02.3]} 45. Kh5 {[%clk 0:00:18.7]} 45... Kf7 {[%clk
0:00:03]} 46. Kg5 {[%clk 0:00:17.6]} 46... Kg7 {[%clk 0:00:02.3]} 47. Kf5 {[%clk
0:00:17.8]} 47... Kf7 {[%clk 0:00:02.6]} 48. b5 {[%clk 0:00:17]} 48... Ke7
{[%clk 0:00:02.8]} 49. Kg6 {[%clk 0:00:17.2]} 49... Ke8 {[%clk 0:00:03]} 50. Kf6
{[%clk 0:00:14.7]} 50... Kf8 {[%clk 0:00:03.3]} 51. Ke6 {[%clk 0:00:13.5]} 51...
Ke8 {[%clk 0:00:03.8]} 52. Kf6 {[%clk 0:00:12.4]} 52... Kf8 {[%clk 0:00:03.9]}
53. Kg6 {[%clk 0:00:08.7]} 53... Ke8 {[%clk 0:00:04.1]} 54. Kg7 {[%clk
0:00:07.3]} 54... Ke7 {[%clk 0:00:04.2]} 55. Kg6 {[%clk 0:00:02.8]} 55... Ke8
{[%clk 0:00:03.2]} 1/2-1/2

[Event "*** Titled Tuesday Blitz"]
[Site "Chess.com"]
[Date "2020.04.28"]
[Round "2"]
[White "Funkmaus"]
[Black "noblerone"]
[Result "1-0"]
[WhiteElo "2205"]
[BlackElo "2417"]
[TimeControl "180+1"]
[EndTime "10:18:57 PDT"]
[Termination "Funkmaus won on time"]

1. d4 {[%clk 0:01:06.2]} 1... d5 {[%clk 0:03:00.4]} 2. Nf3 {[%clk 0:01:07.1]}
2... Nf6 {[%clk 0:03:00.6]} 3. c4 {[%clk 0:01:07.8]} 3... c6 {[%clk 0:03:01]} 4.
cxd5 {[%clk 0:01:08.7]} 4... c5 {[%clk 0:03:01.2]} 5. Nc3 {[%clk 0:01:09.6]}
5... Nxd5 {[%clk 0:03:00]} 6. e3 {[%clk 0:01:09]} 6... cxd4 {[%clk 0:02:58.8]}
7. Nxd4 {[%clk 0:01:09.8]} 7... Nxc3 {[%clk 0:02:58.2]} 8. bxc3 {[%clk
0:01:10.7]} 8... e6 {[%clk 0:02:57.7]} 9. Bd3 {[%clk 0:01:10.9]} 9... Be7 {[%clk
0:02:57.9]} 10. O-O {[%clk 0:01:10.7]} 10... a6 {[%clk 0:02:58.2]} 11. a4 {[%clk
0:01:11.1]} 11... Bd7 {[%clk 0:02:55.9]} 12. Ba3 {[%clk 0:01:11]} 12... O-O
{[%clk 0:02:55.4]} 13. Bxe7 {[%clk 0:01:10]} 13... Qxe7 {[%clk 0:02:56.3]} 14.
a5 {[%clk 0:01:09.8]} 14... Nc6 {[%clk 0:02:56.2]} 15. Qb3 {[%clk 0:01:02]}
15... Rab8 {[%clk 0:02:51.1]} 16. Rfb1 {[%clk 0:00:59.7]} 16... Rfc8 {[%clk
0:02:42.7]} 17. h3 {[%clk 0:00:59.3]} 17... g6 {[%clk 0:02:40.9]} 18. Qb6 {[%clk
0:00:56.5]} 18... Ne5 {[%clk 0:02:32.3]} 19. Be4 {[%clk 0:00:49.5]} 19... Rxc3
{[%clk 0:02:16.5]} 20. Bxb7 {[%clk 0:00:45.1]} 20... Bc8 {[%clk 0:01:56.2]} 21.
Qa7 {[%clk 0:00:28.9]} 21... Rxb7 {[%clk 0:01:50.5]} 22. Rxb7 {[%clk 0:00:27]}
22... Bxb7 {[%clk 0:01:48.2]} 23. Qb8+ {[%clk 0:00:25]} 23... Rc8 {[%clk
0:01:28.4]} 24. Qxe5 {[%clk 0:00:25.8]} 24... Qb4 {[%clk 0:01:15.4]} 25. Rd1
{[%clk 0:00:21.7]} 25... Qa4 {[%clk 0:01:09.6]} 26. Nxe6 {[%clk 0:00:20.9]}
26... Qxd1+ {[%clk 0:01:08.9]} 27. Kh2 {[%clk 0:00:21.3]} 27... fxe6 {[%clk
0:00:57.2]} 28. Qxe6+ {[%clk 0:00:22.1]} 28... Kf8 {[%clk 0:00:57.5]} 29. Qf6+
{[%clk 0:00:21]} 29... Ke8 {[%clk 0:00:57.5]} 30. Qe6+ {[%clk 0:00:20]} 30...
Kd8 {[%clk 0:00:57.4]} 31. Qb6+ {[%clk 0:00:19.8]} 31... Rc7 {[%clk 0:00:50.3]}
32. Qf6+ {[%clk 0:00:18.3]} 32... Kd7 {[%clk 0:00:50.5]} 33. Qf7+ {[%clk
0:00:17.9]} 33... Kc6 {[%clk 0:00:39.1]} 34. Qc4+ {[%clk 0:00:17]} 34... Kd6
{[%clk 0:00:39]} 35. Qf4+ {[%clk 0:00:16.3]} 35... Kd7 {[%clk 0:00:37.8]} 36.
Qf7+ {[%clk 0:00:16.1]} 36... Kd6 {[%clk 0:00:31.2]} 37. Qf4+ {[%clk 0:00:15]}
37... Ke6 {[%clk 0:00:16.3]} 38. Qg4+ {[%clk 0:00:12.3]} 38... Kd5 {[%clk
0:00:08]} 39. Qxd1+ {[%clk 0:00:13.1]} 39... Kc5 {[%clk 0:00:05.7]} 40. Qc1+
{[%clk 0:00:13]} 40... Kd6 {[%clk 0:00:06.6]} 41. Qd2+ {[%clk 0:00:13.7]} 41...
Ke7 {[%clk 0:00:06.7]} 42. Qe2 {[%clk 0:00:14.6]} 42... Rd7 {[%clk 0:00:06.3]}
43. Qg4 {[%clk 0:00:14]} 43... Bd5 {[%clk 0:00:05.8]} 44. Qg5+ {[%clk
0:00:13.9]} 44... Kd6 {[%clk 0:00:05.6]} 45. f4 {[%clk 0:00:13.5]} 45... Re7
{[%clk 0:00:04.7]} 46. Qg3 {[%clk 0:00:12.9]} 46... Re4 {[%clk 0:00:03.1]} 47.
Qf2 {[%clk 0:00:12.4]} 47... Rc4 {[%clk 0:00:02.9]} 48. Qb2 {[%clk 0:00:11.4]}
48... Rc6 {[%clk 0:00:01.5]} 49. Qe5+ {[%clk 0:00:11.3]} 49... Kc5 {[%clk
0:00:01.6]} 50. Qd4+ {[%clk 0:00:10.9]} 1-0

[Event "*** Titled Tuesday Blitz"]
[Site "Chess.com"]
[Date "2020.04.28"]
[Round "2"]
[White "gurelediz"]
[Black "YQPerez"]
[Result "1-0"]
[WhiteElo "2597"]
[BlackElo "2951"]
[TimeControl "180+1"]
[EndTime "10:18:59 PDT"]
[Termination "gurelediz won by resignation"]

1. e4 {[%clk 0:03:00.9]} 1... e5 {[%clk 0:02:58.5]} 2. Nf3 {[%clk 0:03:00.4]}
2... Nc6 {[%clk 0:02:58.7]} 3. Bb5 {[%clk 0:02:59.5]} 3... a6 {[%clk 0:02:58.7]}
4. Ba4 {[%clk 0:02:58.5]} 4... Nf6 {[%clk 0:02:59.1]} 5. O-O {[%clk 0:02:58.3]}
5... b5 {[%clk 0:02:58.4]} 6. Bb3 {[%clk 0:02:58]} 6... Bb7 {[%clk 0:02:58.3]}
7. Re1 {[%clk 0:02:44.7]} 7... Bc5 {[%clk 0:02:58.2]} 8. c3 {[%clk 0:02:43.3]}
8... O-O {[%clk 0:02:58.4]} 9. d4 {[%clk 0:02:42.5]} 9... Bb6 {[%clk 0:02:58.5]}
10. Bg5 {[%clk 0:02:37]} 10... h6 {[%clk 0:02:58.3]} 11. Bh4 {[%clk 0:02:36.1]}
11... Re8 {[%clk 0:02:58.7]} 12. d5 {[%clk 0:02:32.1]} 12... Na5 {[%clk
0:02:49]} 13. Bc2 {[%clk 0:02:31.5]} 13... c6 {[%clk 0:02:38.5]} 14. d6 {[%clk
0:02:16.1]} 14... c5 {[%clk 0:02:19.3]} 15. Nbd2 {[%clk 0:02:12]} 15... Re6
{[%clk 0:01:58.7]} 16. Bg3 {[%clk 0:01:41.6]} 16... Nc6 {[%clk 0:01:43.3]} 17.
Nf1 {[%clk 0:01:34.2]} 17... Qf8 {[%clk 0:01:35.4]} 18. Ne3 {[%clk 0:01:32.8]}
18... Rxd6 {[%clk 0:01:34.5]} 19. Qe2 {[%clk 0:01:32.3]} 19... Re6 {[%clk
0:01:19]} 20. Nd5 {[%clk 0:01:28.6]} 20... Bd8 {[%clk 0:01:18.6]} 21. Rad1
{[%clk 0:01:26]} 21... d6 {[%clk 0:01:17.7]} 22. a4 {[%clk 0:01:16.8]} 22... c4
{[%clk 0:01:11.4]} 23. Rd2 {[%clk 0:01:04.1]} 23... Re8 {[%clk 0:01:07.6]} 24.
Red1 {[%clk 0:01:01.7]} 24... Nxd5 {[%clk 0:01:07.4]} 25. Rxd5 {[%clk
0:00:58.9]} 25... Bc7 {[%clk 0:01:02.3]} 26. axb5 {[%clk 0:00:57.4]} 26... axb5
{[%clk 0:01:01.1]} 27. Rxb5 {[%clk 0:00:53.7]} 27... Ba6 {[%clk 0:01:00.9]} 28.
Rbd5 {[%clk 0:00:51.8]} 28... Reb8 {[%clk 0:00:58.1]} 29. Ba4 {[%clk 0:00:47.7]}
29... Ne7 {[%clk 0:00:56.7]} 30. R5d2 {[%clk 0:00:44.4]} 30... Bb5 {[%clk
0:00:56]} 31. Bxb5 {[%clk 0:00:42.3]} 31... Rxb5 {[%clk 0:00:56.9]} 32. Qxc4
{[%clk 0:00:41.5]} 32... Qb8 {[%clk 0:00:56]} 33. b4 {[%clk 0:00:36.7]} 33...
Qb7 {[%clk 0:00:42.1]} 34. Nh4 {[%clk 0:00:30.5]} 34... Rb6 {[%clk 0:00:27.8]}
35. Nf5 {[%clk 0:00:27.2]} 35... Nxf5 {[%clk 0:00:25.7]} 36. exf5 {[%clk
0:00:28.1]} 36... Qc6 {[%clk 0:00:20.7]} 37. Qxc6 {[%clk 0:00:24.3]} 37... Rxc6
{[%clk 0:00:21.6]} 38. Rc2 {[%clk 0:00:24.7]} 38... f6 {[%clk 0:00:12.7]} 39. c4
{[%clk 0:00:22.3]} 39... Ra4 {[%clk 0:00:11.5]} 40. Rb1 {[%clk 0:00:22.1]} 40...
Bb6 {[%clk 0:00:10.8]} 41. Kf1 {[%clk 0:00:19.8]} 41... Bd4 {[%clk 0:00:11]} 42.
Ke2 {[%clk 0:00:19.3]} 42... Rb6 {[%clk 0:00:11]} 43. b5 {[%clk 0:00:15.2]}
43... Kf7 {[%clk 0:00:11.3]} 44. Kd3 {[%clk 0:00:15.3]} 44... Ra3+ {[%clk
0:00:10.7]} 45. Ke4 {[%clk 0:00:15.4]} 45... Ke7 {[%clk 0:00:10.6]} 46. Rd2
{[%clk 0:00:10.8]} 46... Bc5 {[%clk 0:00:09.5]} 47. Rbb2 {[%clk 0:00:08]} 47...
Rb8 {[%clk 0:00:09.1]} 48. Ra2 {[%clk 0:00:08.1]} 48... Rba8 {[%clk 0:00:09.1]}
49. Rxa3 {[%clk 0:00:08.3]} 49... Rxa3 {[%clk 0:00:10]} 50. Kd5 {[%clk
0:00:08.7]} 50... Kd7 {[%clk 0:00:10.6]} 51. f3 {[%clk 0:00:08.2]} 51... Kc7
{[%clk 0:00:10.7]} 52. Bf2 {[%clk 0:00:08.3]} 52... Bxf2 {[%clk 0:00:10]} 53.
Rxf2 {[%clk 0:00:09.2]} 53... Kd7 {[%clk 0:00:10.5]} 54. Rd2 {[%clk 0:00:08.7]}
54... Rb3 {[%clk 0:00:10.3]} 55. Ra2 {[%clk 0:00:07.2]} 55... Rd3+ {[%clk
0:00:10.2]} 56. Ke4 {[%clk 0:00:07.7]} 56... Rd4+ {[%clk 0:00:10.7]} 57. Ke3
{[%clk 0:00:08.4]} 57... Rxc4 {[%clk 0:00:11.4]} 58. Ra7+ {[%clk 0:00:08.9]}
58... Rc7 {[%clk 0:00:11.5]} 59. b6 {[%clk 0:00:09.2]} 1-0